[Event "98th Caplin Hastings Masters 2024-25"]
[Site "Hastings"]
[Date "2024.12.31"]
[Round "5.24"]
[White "Bharat Kumar, Balahari"]
[Black "Boswell, Jacob Connor"]
[Result "0-1"]
[ECO "A15"]
[WhiteElo "2063"]
[BlackElo "2277"]
[Annotator "NA RC"]
[PlyCount "64"]
[EventDate "2024.12.23"]
[EventType "swiss"]
[EventCountry "ENG"]
[SourceTitle "playchess.com"]
[Source "ChessBase"]
[SourceQuality "1"]
[TimeControl "5400+30"]

1. c4 {[%emt 1:31:00]} Nf6 {[%emt 0:04:57]} 2. Nf3 {[%emt 0:00:00]} g6 {[%emt 0:00:27]} 3. b4 {[%emt 0:00:00]} Bg7 {[%emt 0:02:02]} 4. Bb2 {[%emt 0:00:00]} O-O {[%emt 0:02:01]} 5. g3 {[%emt 0:00:00]} c6 {[%emt 0:05:27]} 6. Bg2 {[%emt 0:00:00]} d5 {[%emt 0:00:28]} 7. O-O {[%emt 0:00:00]} a5 {[%emt 0:06:09]} 8. b5 {[%emt 0:00:00]} dxc4 {[%emt 0:06:24]} 9. a4 {[%emt 0:00:00]} cxb5 {[%emt 0:31:42]} 10. axb5 {[%emt 0:00:00]} Ne4 {[%emt 0:00:26]} 11. Bxg7 {[%emt 0:00:00]} Kxg7 {[%emt 0:00:03]} 12. Qc2 {[%emt 0:00:00]} Nd6 {[%emt 0:02:06]} 13. Na3 {[%emt 0:00:00]} f6 {[%emt 0:04:53]} 14. Nd4 {[%emt 0:00:00]} e5 {[%emt 0:00:55]} 15. Nf3 {[%emt 0:00:00]} Be6 {[%emt 0:06:43]} 16. Qb2 {[%emt 0:00:00]} Nd7 {[%emt 0:01:29]} 17. d3 {[%emt 0:00:00]} cxd3 {[%emt 0:02:04]} 18. exd3 {[%emt 0:00:00]} Qe7 {[%emt 0:02:57]} 19. Nd2 {[%emt 0:02:22]} Nc5 {[%emt 0:12:26]} 20. d4 {[%emt 0:01:14]} exd4 {[%emt 0:00:21]} 21. Qxd4 {[%emt 0:00:57]} Rac8 {[%emt 0:00:43]} 22. g4 {[%emt 0:04:14]} Rfd8 {[%emt 0:01:51]} 23. Qe3 {[%emt 0:00:49]} Qd7 {[%emt 0:02:20]} 24. h3 {[%emt 0:00:39]} Qf7 {[%emt 0:01:31]} 25. Rac1 {[%emt 0:00:57]} b6 {[%emt 0:00:46]} 26. Rfe1 {[%emt 0:00:42]} Bd5 {[%emt 0:01:29]} 27. Bxd5 {[%emt 0:00:27]} Qxd5 {[%emt 0:00:01]} 28. Rcd1 {[%emt 0:00:37]} Re8 {[%emt 0:00:38]} 29. Ne4 {[%emt 0:00:30]} Qxe4 {[%emt 0:00:39]} 30. Rxd6 {[%emt 0:00:05]} Qb4 {[%emt 0:00:32]} 31. Rb1 {[%emt 0:00:54]} Rxe3 {[%emt 0:00:18]} 32. Rxb4 {[%emt 0:00:04]} Re1+ {[%emt 0:00:10]} 0-1

[Event "98th Caplin Hastings Masters 2024-25"]
[Site "Hastings"]
[Date "2024.12.31"]
[Round "5.25"]
[White "Nielsen, Andre"]
[Black "Burrows, Martin P"]
[Result "1/2-1/2"]
[ECO "B93"]
[WhiteElo "2276"]
[BlackElo "2042"]
[Annotator "RC"]
[PlyCount "121"]
[EventDate "2024.12.23"]
[EventType "swiss"]
[EventCountry "ENG"]
[SourceTitle "playchess.com"]
[Source "ChessBase"]
[SourceQuality "1"]
[TimeControl "5400+30"]

1. e4 {[%emt 0:00:05]} c5 {[%emt 0:00:06]} 2. Nf3 {[%emt 0:00:25]} d6 {[%emt 0:00:07]} 3. d4 {[%emt 0:00:23]} cxd4 {[%emt 0:00:06]} 4. Nxd4 {[%emt 0:00:11]} Nf6 {[%emt 0:00:05]} 5. Nc3 {[%emt 0:00:17]} a6 {[%emt 0:00:07]} 6. f4 {[%emt 0:02:37]} e5 {[%emt 0:00:32]} 7. Nb3 {[%emt 0:00:20]} Be7 {[%emt 0:02:21]} 8. fxe5 {[%emt 0:00:29]} dxe5 {[%emt 0:00:28]} 9. Qxd8+ {[%emt 0:00:23]} Bxd8 {[%emt 0:01:26]} 10. Be3 {[%emt 0:00:35]} Nbd7 {[%emt 0:10:14]} 11. a4 {[%emt 0:08:35]} b6 {[%emt 0:01:17]} 12. Be2 {[%emt 0:11:52]} Bb7 {[%emt 0:04:07]} 13. Bf3 {[%emt 0:03:53]} Be7 {[%emt 0:02:32]} 14. O-O-O {[%emt 0:02:11]} Rc8 {[%emt 0:04:59]} 15. Rhf1 {[%emt 0:10:23]} h5 {[%emt 0:13:45]} 16. h3 {[%emt 0:09:22]} Bb4 {[%emt 0:03:08]} 17. Nd5 {[%emt 0:03:58]} Nxd5 {[%emt 0:05:07]} 18. exd5 {[%emt 0:43:31]} Bd6 {[%emt 0:00:17]} 19. g4 {[%emt 0:00:00]} Rc4 {[%emt 0:05:26]} 20. a5 {[%emt 0:00:00]} b5 {[%emt 0:00:14]} 21. gxh5 {[%emt 0:00:00]} f5 {[%emt 0:07:04]} 22. Bg5 {[%emt 0:00:00]} O-O {[%emt 0:03:20]} 23. Bg2 {[%emt 0:00:00]} Bc8 {[%emt 0:02:21]} 24. Nd2 {[%emt 0:00:00]} Rc7 {[%emt 0:01:46]} 25. h4 {[%emt 0:00:00]} Nf6 {[%emt 0:01:07]} 26. h6 {[%emt 0:00:00]} Ng4 {[%emt 0:06:20]} 27. hxg7 {[%emt 0:00:00]} Rxg7 {[%emt 0:00:49]} 28. Rde1 {[%emt 0:00:00]} Kh7 {[%emt 0:05:45]} 29. Bh3 {[%emt 0:00:00]} Nh6 {[%emt 0:00:12]} 30. Nf3 {[%emt 0:00:00]} e4 {[%emt 0:01:15]} 31. Nd4 {[%emt 0:00:41]} Bg3 {[%emt 0:04:56]} 32. Re2 {[%emt 0:00:37]} Rgf7 {[%emt 0:00:48]} 33. Ne6 {[%emt 0:00:51]} Rg8 {[%emt 0:01:30]} 34. Bxh6 {[%emt 0:01:18]} Kxh6 {[%emt 0:00:03]} 35. Rxf5 {[%emt 0:02:08]} Bxe6 {[%emt 0:03:57]} 36. dxe6 {[%emt 0:00:09]} Bf4+ {[%emt 0:00:35]} 37. Kb1 {[%emt 0:00:32]} Rxf5 {[%emt 0:01:50]} 38. Bxf5 {[%emt 0:00:07]} e3 {[%emt 0:00:04]} 39. Be4 {[%emt 0:02:55]} Re8 {[%emt 0:01:22]} 40. Bd5 {[%emt 0:00:24]} Kg7 {[%emt 0:00:56]} 41. c4 {[%emt 0:00:39]} bxc4 {[%emt 0:02:45]} 42. Bxc4 {[%emt 0:00:06]} Kf6 {[%emt 0:00:20]} 43. Bxa6 {[%emt 0:01:21]} Ra8 {[%emt 0:00:26]} 44. Bc4 {[%emt 0:00:12]} Rxa5 {[%emt 0:00:08]} 45. Rg2 {[%emt 0:00:54]} Rh5 {[%emt 0:01:23]} 46. Rg8 {[%emt 0:00:24]} Bd6 {[%emt 0:01:22]} 47. Rg4 {[%emt 0:00:15]} Re5 {[%emt 0:00:48]} 48. Rf4+ {[%emt 0:00:40]} Kg6 {[%emt 0:02:10]} 49. Rg4+ {[%emt 0:00:26]} Kf6 {[%emt 0:00:24]} 50. Rg2 {[%emt 0:00:10]} Rh5 {[%emt 0:00:41]} 51. Rg4 {[%emt 0:00:51]} Re5 {[%emt 0:00:59]} 52. Rg1 {[%emt 0:00:33]} e2 {[%emt 0:01:21]} 53. Re1 {[%emt 0:00:37]} Bb4 {[%emt 0:00:05]} 54. Rxe2 {[%emt 0:00:18]} Rxe2 {[%emt 0:00:04]} 55. Bxe2 {[%emt 0:00:07]} Kxe6 {[%emt 0:00:05]} 56. h5 {[%emt 0:00:44]} Kf7 {[%emt 0:00:29]} 57. Kc2 {[%emt 0:00:45]} Kg7 {[%emt 0:00:08]} 58. Kd3 {[%emt 0:00:20]} Be7 {[%emt 0:00:13]} 59. Kc4 {[%emt 0:00:22]} Bd6 {[%emt 0:00:13]} 60. b4 {[%emt 0:00:44]} Bxb4 {[%emt 0:00:05]} 61. Kxb4 {[%emt 0:00:07]} 1/2-1/2

[Event "98th Caplin Hastings Masters 2024-25"]
[Site "Hastings"]
[Date "2024.12.31"]
[Round "5.26"]
[White "Wall, Tim P"]
[Black "Gorainow, Nikita"]
[Result "1-0"]
[ECO "C00"]
[WhiteElo "2173"]
[BlackElo "2045"]
[Annotator "NA RC"]
[PlyCount "83"]
[EventDate "2024.12.23"]
[EventType "swiss"]
[EventCountry "ENG"]
[SourceTitle "playchess.com"]
[Source "ChessBase"]
[SourceQuality "1"]
[TimeControl "5400+30"]

1. e4 {[%emt 0:00:03]} c5 {[%emt 0:00:22]} 2. Nf3 {[%emt 0:09:02]} e6 {[%emt 0:00:10]} 3. Qe2 {[%emt 0:02:34]} Nc6 {[%emt 0:08:39]} 4. g3 {[%emt 0:00:22]} d6 {[%emt 0:04:11]} 5. Bg2 {[%emt 0:00:14]} Nf6 {[%emt 0:00:04]} 6. O-O {[%emt 0:00:24]} Be7 {[%emt 0:00:02]} 7. c3 {[%emt 0:01:48]} e5 {[%emt 0:09:38]} 8. d3 {[%emt 0:02:47]} O-O {[%emt 0:00:23]} 9. Nbd2 {[%emt 0:01:07]} h6 {[%emt 0:19:28]} 10. a3 {[%emt 0:03:30]} a5 {[%emt 0:02:25]} 11. a4 {[%emt 0:01:45]} Be6 {[%emt 0:08:04]} 12. Nc4 {[%emt 0:00:37]} Qc7 {[%emt 0:06:33]} 13. Bd2 {[%emt 0:12:31]} Rab8 {[%emt 0:01:56]} 14. Rfe1 {[%emt 0:04:37]} b5 {[%emt 0:04:52]} 15. axb5 {[%emt 0:00:09]} Rxb5 {[%emt 0:00:03]} 16. Bc1 {[%emt 0:00:13]} Rfb8 {[%emt 0:01:42]} 17. Nfd2 {[%emt 0:05:38]} R5b7 {[%emt 0:07:57]} 18. Nf1 {[%emt 0:03:20]} Rd8 {[%emt 0:04:54]} 19. Nfe3 {[%emt 0:08:16]} d5 {[%emt 0:05:14]} 20. exd5 {[%emt 0:04:47]} Nxd5 {[%emt 0:00:18]} 21. Ng4 {[%emt 0:02:31]} f6 {[%emt 0:03:54]} 22. f4 {[%emt 0:03:45]} Nb6 {[%emt 0:04:20]} 23. Nxa5 {[%emt 0:03:30]} Nxa5 {[%emt 0:00:53]} 24. Rxa5 {[%emt 0:00:09]} Bd5 {[%emt 0:04:51]} 25. fxe5 {[%emt 0:02:41]} f5 {[%emt 0:01:15]} 26. Ne3 {[%emt 0:01:39]} Bxg2 {[%emt 0:00:37]} 27. Nxg2 {[%emt 0:05:15]} Bg5 {[%emt 0:00:29]} 28. Bxg5 {[%emt 0:02:36]} hxg5 {[%emt 0:00:03]} 29. Raa1 {[%emt 0:00:53]} Re8 {[%emt 0:00:37]} 30. Qh5 {[%emt 0:01:32]} Qe7 {[%emt 0:00:55]} 31. Ne3 {[%emt 0:01:48]} Rf8 {[%emt 0:00:31]} 32. Qg6 {[%emt 0:06:45]} Qxe5 {[%emt 0:00:32]} 33. Qxg5 {[%emt 0:00:08]} Nd5 {[%emt 0:00:26]} 34. Nc4 {[%emt 0:00:47]} Qf6 {[%emt 0:00:34]} 35. Qxf6 {[%emt 0:00:37]} Nxf6 {[%emt 0:00:17]} 36. Re5 {[%emt 0:00:29]} Nd7 {[%emt 0:00:05]} 37. Re7 {[%emt 0:00:41]} f4 {[%emt 0:00:36]} 38. gxf4 {[%emt 0:01:02]} Rxf4 {[%emt 0:00:05]} 39. Ra8+ {[%emt 0:01:46]} Rf8 {[%emt 0:00:10]} 40. Ra6 {[%emt 0:01:22]} Rf7 {[%emt 0:00:08]} 41. Rxf7 {[%emt 0:00:09]} Kxf7 {[%emt 0:00:08]} 42. Nd6+ {[%emt 0:05:42]} 1-0

[Event "98th Caplin Hastings Masters 2024-25"]
[Site "Hastings"]
[Date "2024.12.31"]
[Round "5.27"]
[White "Kennedy, Craig"]
[Black "White, Stuart A"]
[Result "0-1"]
[ECO "B31"]
[WhiteElo "1851"]
[BlackElo "2017"]
[Annotator "NA RC"]
[PlyCount "48"]
[EventDate "2024.12.23"]
[EventType "swiss"]
[EventCountry "ENG"]
[SourceTitle "playchess.com"]
[Source "ChessBase"]
[SourceQuality "1"]
[TimeControl "5400+30"]

1. e4 {[%emt 0:00:03]} c5 {[%emt 0:00:07]} 2. Be2 {[%emt 0:00:08]} Nc6 {[%emt 0:00:09]} 3. f4 {[%emt 0:00:06]} d5 {[%emt 0:00:12]} 4. exd5 {[%emt 0:00:28]} Qxd5 {[%emt 0:00:06]} 5. Nf3 {[%emt 0:00:09]} g6 {[%emt 0:00:40]} 6. Nc3 {[%emt 0:00:22]} Qd8 {[%emt 0:00:14]} 7. O-O {[%emt 0:02:12]} Bg7 {[%emt 0:00:06]} 8. Bb5 {[%emt 0:02:47]} Bd7 {[%emt 0:02:42]} 9. d3 {[%emt 0:01:55]} a6 {[%emt 0:03:41]} 10. Bxc6 {[%emt 0:00:44]} Bxc6 {[%emt 0:00:02]} 11. Be3 {[%emt 0:05:28]} Qc7 {[%emt 0:03:35]} 12. Qe1 {[%emt 0:05:39]} b6 {[%emt 0:10:30]} 13. Rd1 {[%emt 0:01:02]} Rd8 {[%emt 0:04:10]} 14. Qh4 {[%emt 0:08:39]} e6 {[%emt 0:07:34]} 15. f5 {[%emt 0:04:51]} gxf5 {[%emt 0:05:37]} 16. Bf4 {[%emt 1:03:57]} Qe7 {[%emt 0:05:14]} 17. Qg3 {[%emt 0:00:00]} Kf8 {[%emt 0:09:57]} 18. Ne5 {[%emt 0:00:00]} Ba8 {[%emt 0:10:03]} 19. Nc4 {[%emt 0:00:00]} b5 {[%emt 0:00:54]} 20. Bd6 {[%emt 0:00:00]} Rxd6 {[%emt 0:00:06]} 21. Nxd6 {[%emt 0:00:00]} Bd4+ {[%emt 0:02:21]} 22. Kh1 {[%emt 0:00:00]} Nf6 {[%emt 0:08:28]} 23. Rd2 {[%emt 0:00:00]} Rg8 {[%emt 0:04:34]} 24. Qf4 {[%emt 0:00:00]} Rg4 {[%emt 0:01:54]} 0-1

[Event "98th Caplin Hastings Masters 2024-25"]
[Site "Hastings"]
[Date "2024.12.31"]
[Round "5.28"]
[White "Rubeck, Jonathan"]
[Black "Malinovskii, Ilia"]
[Result "0-1"]
[ECO "B09"]
[WhiteElo "1824"]
[BlackElo "2003"]
[Annotator "NA RC"]
[PlyCount "110"]
[EventDate "2024.12.23"]
[EventType "swiss"]
[EventCountry "ENG"]
[SourceTitle "playchess.com"]
[Source "ChessBase"]
[SourceQuality "1"]
[TimeControl "5400+30"]

1. e4 {[%emt 0:00:03]} d6 {[%emt 0:03:27]} 2. d4 {[%emt 0:00:27]} Nf6 {[%emt 0:00:22]} 3. Nc3 {[%emt 0:00:10]} g6 {[%emt 0:00:05]} 4. f4 {[%emt 0:00:11]} Bg7 {[%emt 0:00:06]} 5. Nf3 {[%emt 0:00:31]} O-O {[%emt 0:00:20]} 6. Bd3 {[%emt 0:01:47]} Nc6 {[%emt 0:00:09]} 7. O-O {[%emt 0:01:09]} e5 {[%emt 0:00:59]} 8. fxe5 {[%emt 0:08:18]} dxe5 {[%emt 0:00:05]} 9. d5 {[%emt 0:00:35]} Ne7 {[%emt 0:00:16]} 10. Qe1 {[%emt 0:01:56]} c6 {[%emt 0:00:58]} 11. Qh4 {[%emt 0:02:16]} cxd5 {[%emt 0:19:57]} 12. Bg5 {[%emt 0:04:50]} dxe4 {[%emt 0:14:18]} 13. Nxe4 {[%emt 0:03:29]} Nf5 {[%emt 0:00:46]} 14. Nxf6+ {[%emt 0:07:37]} Bxf6 {[%emt 0:00:41]} 15. Bxf5 {[%emt 0:00:25]} Qb6+ {[%emt 0:06:36]} 16. Kh1 {[%emt 0:04:55]} Bg7 {[%emt 0:00:06]} 17. Bxc8 {[%emt 0:06:51]} Raxc8 {[%emt 0:00:07]} 18. Be7 {[%emt 0:02:29]} Rfe8 {[%emt 0:00:28]} 19. Ba3 {[%emt 0:01:02]} h6 {[%emt 0:02:03]} 20. c3 {[%emt 0:03:23]} e4 {[%emt 0:04:20]} 21. Nd2 {[%emt 0:01:06]} f5 {[%emt 0:01:15]} 22. Rae1 {[%emt 0:02:05]} Qa6 {[%emt 0:09:08]} 23. Nb3 {[%emt 0:04:16]} g5 {[%emt 0:06:40]} 24. Qf2 {[%emt 0:03:09]} f4 {[%emt 0:00:34]} 25. Nd4 {[%emt 0:07:48]} Qg6 {[%emt 0:06:16]} 26. Nb5 {[%emt 0:01:49]} Be5 {[%emt 0:02:51]} 27. Qc2 {[%emt 0:05:04]} Bb8 {[%emt 0:03:02]} 28. Nd4 {[%emt 0:02:16]} Rc7 {[%emt 0:05:40]} 29. Qb3+ {[%emt 0:02:06]} Kh7 {[%emt 0:00:50]} 30. Qb5 {[%emt 0:01:10]} Rg7 {[%emt 0:02:12]} 31. Qf5 {[%emt 0:00:31]} e3 {[%emt 0:00:14]} 32. Qxg6+ {[%emt 0:01:18]} Kxg6 {[%emt 0:00:06]} 33. Bc5 {[%emt 0:06:33]} b6 {[%emt 0:02:34]} 34. Ba3 {[%emt 0:00:37]} Rd7 {[%emt 0:02:29]} 35. Re2 {[%emt 0:02:35]} a5 {[%emt 0:02:13]} 36. b4 {[%emt 0:02:46]} Bd6 {[%emt 0:00:45]} 37. Nb5 {[%emt 0:00:35]} Be5 {[%emt 0:01:06]} 38. Nd4 {[%emt 0:05:20]} Bxd4 {[%emt 0:02:37]} 39. cxd4 {[%emt 0:00:04]} Rxd4 {[%emt 0:00:08]} 40. bxa5 {[%emt 0:01:43]} bxa5 {[%emt 0:01:17]} 41. Bc1 {[%emt 0:00:46]} Red8 {[%emt 0:01:28]} 42. Kg1 {[%emt 0:02:10]} Rd1 {[%emt 0:00:36]} 43. Rfe1 {[%emt 0:00:38]} Kf5 {[%emt 0:00:30]} 44. Kf1 {[%emt 0:00:20]} h5 {[%emt 0:00:22]} 45. Rc2 {[%emt 0:00:36]} R1d5 {[%emt 0:00:18]} 46. Ke2 {[%emt 0:00:37]} h4 {[%emt 0:00:50]} 47. h3 {[%emt 0:01:06]} g4 {[%emt 0:00:10]} 48. Rf1 {[%emt 0:00:42]} Kg5 {[%emt 0:01:18]} 49. hxg4 {[%emt 0:01:04]} Kxg4 {[%emt 0:00:07]} 50. Rc4 {[%emt 0:00:12]} Rd4 {[%emt 0:00:19]} 51. Rc2 {[%emt 0:01:25]} R8d5 {[%emt 0:00:25]} 52. Rb2 {[%emt 0:00:59]} Rc4 {[%emt 0:00:31]} 53. Rb8 {[%emt 0:00:25]} Rc2+ {[%emt 0:00:08]} 54. Ke1 {[%emt 0:00:17]} Rxc1+ {[%emt 0:00:04]} 55. Ke2 {[%emt 0:00:13]} Rd2# {[%emt 0:00:04]} 0-1

[Event "98th Caplin Hastings Masters 2024-25"]
[Site "Hastings"]
[Date "2024.12.31"]
[Round "5.29"]
[White "Badacsonyi, Stanley"]
[Black "Suez-Panama, Gilles"]
[Result "1-0"]
[ECO "A90"]
[WhiteElo "2266"]
[BlackElo "1979"]
[Annotator "NA RC"]
[PlyCount "77"]
[EventDate "2024.12.23"]
[EventType "swiss"]
[EventCountry "ENG"]
[SourceTitle "playchess.com"]
[Source "ChessBase"]
[SourceQuality "1"]
[TimeControl "5400+30"]

1. d4 {[%emt 0:00:01]} e6 {[%emt 0:00:29]} 2. c4 {[%emt 0:00:09]} f5 {[%emt 0:00:17]} 3. Nf3 {[%emt 0:00:21]} Nf6 {[%emt 0:00:20]} 4. g3 {[%emt 0:00:07]} d5 {[%emt 0:01:17]} 5. Bg2 {[%emt 0:00:07]} Be7 {[%emt 0:01:44]} 6. Qc2 {[%emt 0:01:18]} Ne4 {[%emt 0:01:31]} 7. Nc3 {[%emt 0:00:15]} Nc6 {[%emt 0:01:41]} 8. O-O {[%emt 0:00:35]} Bf6 {[%emt 0:08:57]} 9. Rd1 {[%emt 0:01:31]} g5 {[%emt 0:13:07]} 10. cxd5 {[%emt 0:07:17]} exd5 {[%emt 0:00:43]} 11. Ne5 {[%emt 0:00:17]} Ne7 {[%emt 0:04:52]} 12. f3 {[%emt 0:01:13]} Nxc3 {[%emt 0:03:13]} 13. bxc3 {[%emt 0:00:16]} Ng6 {[%emt 0:02:31]} 14. e4 {[%emt 0:03:39]} dxe4 {[%emt 0:04:37]} 15. fxe4 {[%emt 0:01:01]} f4 {[%emt 0:02:15]} 16. Nxg6 {[%emt 0:00:25]} hxg6 {[%emt 0:00:12]} 17. e5 {[%emt 0:04:40]} Bf5 {[%emt 0:00:15]} 18. Qe2 {[%emt 0:01:21]} Be7 {[%emt 0:01:03]} 19. Bxb7 {[%emt 0:00:12]} fxg3 {[%emt 0:01:04]} 20. hxg3 {[%emt 0:00:06]} Rh3 {[%emt 0:02:51]} 21. Qg2 {[%emt 0:00:06]} Rb8 {[%emt 0:01:25]} 22. Bc6+ {[%emt 0:00:07]} Bd7 {[%emt 0:00:38]} 23. Be4 {[%emt 0:00:56]} Rb6 {[%emt 0:03:01]} 24. Be3 {[%emt 0:00:12]} Qb8 {[%emt 0:01:13]} 25. Rab1 {[%emt 0:00:35]} Kf7 {[%emt 0:09:14]} 26. d5 {[%emt 0:00:45]} Bg4 {[%emt 0:01:14]} 27. Rf1+ {[%emt 0:01:16]} Kg7 {[%emt 0:00:25]} 28. Bd4 {[%emt 0:00:22]} Kh6 {[%emt 0:02:26]} 29. Rxb6 {[%emt 0:01:40]} axb6 {[%emt 0:00:27]} 30. Bxg6 {[%emt 0:00:34]} Qg8 {[%emt 0:05:57]} 31. Bf5 {[%emt 0:00:55]} Bxf5 {[%emt 0:00:21]} 32. Rxf5 {[%emt 0:00:08]} g4 {[%emt 0:01:55]} 33. Be3+ {[%emt 0:01:59]} Kh7 {[%emt 0:05:36]} 34. Qe4 {[%emt 0:00:44]} Kh8 {[%emt 0:02:41]} 35. e6 {[%emt 0:00:30]} Rxg3+ {[%emt 0:05:25]} 36. Kf2 {[%emt 0:00:08]} Rxe3 {[%emt 0:00:38]} 37. Rh5+ {[%emt 0:00:05]} Kg7 {[%emt 0:00:08]} 38. Qxg4+ {[%emt 0:00:04]} Kf8 {[%emt 0:00:25]} 39. Rf5+ {[%emt 0:00:04]} 1-0

[Event "98th Caplin Hastings Masters 2024-25"]
[Site "Hastings"]
[Date "2024.12.31"]
[Round "5.30"]
[White "Muir, Andrew J"]
[Black "Alcindor, Samuel"]
[Result "0-1"]
[ECO "A59"]
[WhiteElo "2214"]
[BlackElo "1927"]
[Annotator "NA RC"]
[PlyCount "116"]
[EventDate "2024.12.23"]
[EventType "swiss"]
[EventCountry "ENG"]
[SourceTitle "playchess.com"]
[Source "ChessBase"]
[SourceQuality "1"]
[TimeControl "5400+30"]

1. d4 {[%emt 0:00:03]} Nf6 {[%emt 0:00:32]} 2. c4 {[%emt 0:00:05]} c5 {[%emt 0:00:06]} 3. d5 {[%emt 0:00:05]} b5 {[%emt 0:00:04]} 4. cxb5 {[%emt 0:00:04]} a6 {[%emt 0:00:05]} 5. bxa6 {[%emt 0:00:09]} g6 {[%emt 0:00:07]} 6. Nc3 {[%emt 0:00:04]} Bxa6 {[%emt 0:00:06]} 7. e4 {[%emt 0:00:05]} Bxf1 {[%emt 0:00:05]} 8. Kxf1 {[%emt 0:00:07]} d6 {[%emt 0:00:05]} 9. g3 {[%emt 0:00:04]} Nbd7 {[%emt 0:00:07]} 10. Kg2 {[%emt 0:00:12]} Bg7 {[%emt 0:00:05]} 11. Nf3 {[%emt 0:00:04]} O-O {[%emt 0:00:10]} 12. a4 {[%emt 0:00:02]} Ra6 {[%emt 0:00:18]} 13. Qc2 {[%emt 0:00:35]} Qa8 {[%emt 0:00:17]} 14. Nb5 {[%emt 0:00:36]} Rc8 {[%emt 0:00:08]} 15. Ra3 {[%emt 0:09:11]} c4 {[%emt 0:00:06]} 16. Nfd4 {[%emt 0:02:32]} Nc5 {[%emt 0:02:27]} 17. Nc6 {[%emt 0:03:18]} Kf8 {[%emt 0:00:10]} 18. Qxc4 {[%emt 0:08:50]} Ncxe4 {[%emt 0:11:52]} 19. Re1 {[%emt 0:07:02]} e6 {[%emt 0:24:31]} 20. Qb4 {[%emt 0:03:50]} Nxd5 {[%emt 0:02:16]} 21. Qxe4 {[%emt 0:00:17]} Raxc6 {[%emt 0:00:40]} 22. Ra1 {[%emt 0:05:41]} Rb6 {[%emt 0:13:50]} 23. Ra3 {[%emt 0:02:12]} Rxc1 {[%emt 0:01:46]} 24. Rxc1 {[%emt 0:00:26]} Bxb2 {[%emt 0:00:14]} 25. Rac3 {[%emt 0:10:10]} Bxc1 {[%emt 0:04:21]} 26. Rxc1 {[%emt 0:00:40]} Ra6 {[%emt 0:01:10]} 27. Qf3 {[%emt 0:08:07]} Rxa4 {[%emt 0:03:03]} 28. Kg1 {[%emt 0:06:57]} Ra1 {[%emt 0:02:45]} 29. Rxa1 {[%emt 0:00:18]} Qxa1+ {[%emt 0:00:06]} 30. Kg2 {[%emt 0:00:04]} Qe5 {[%emt 0:00:43]} 31. Qd3 {[%emt 0:01:25]} Kg7 {[%emt 0:03:29]} 32. Nd4 {[%emt 0:00:17]} Qg5 {[%emt 0:00:48]} 33. Qe4 {[%emt 0:01:46]} Nf6 {[%emt 0:03:55]} 34. Qe2 {[%emt 0:01:43]} Qd5+ {[%emt 0:01:30]} 35. Nf3 {[%emt 0:00:14]} Ng4 {[%emt 0:01:26]} 36. Kg1 {[%emt 0:00:28]} h5 {[%emt 0:01:21]} 37. h3 {[%emt 0:00:33]} Nf6 {[%emt 0:00:49]} 38. h4 {[%emt 0:01:37]} Qe4 {[%emt 0:00:37]} 39. Qd1 {[%emt 0:00:14]} Qd5 {[%emt 0:01:08]} 40. Qe2 {[%emt 0:00:23]} Qe4 {[%emt 0:00:02]} 41. Qd1 {[%emt 0:00:07]} d5 {[%emt 0:00:29]} 42. Ng5 {[%emt 0:00:13]} Qf5 {[%emt 0:00:41]} 43. Qa1 {[%emt 0:00:50]} e5 {[%emt 0:03:01]} 44. Qa7 {[%emt 0:01:16]} Ne4 {[%emt 0:00:27]} 45. Qe3 {[%emt 0:00:59]} Nxg5 {[%emt 0:00:29]} 46. hxg5 {[%emt 0:00:10]} d4 {[%emt 0:00:53]} 47. Qd2 {[%emt 0:00:13]} Qf3 {[%emt 0:01:02]} 48. Qa5 {[%emt 0:01:08]} Qe2 {[%emt 0:01:28]} 49. Qd8 {[%emt 0:00:48]} Qe1+ {[%emt 0:00:17]} 50. Kg2 {[%emt 0:00:05]} Qe4+ {[%emt 0:00:09]} 51. Kg1 {[%emt 0:00:40]} Qf5 {[%emt 0:00:34]} 52. Kg2 {[%emt 0:01:32]} Qe6 {[%emt 0:03:25]} 53. f4 {[%emt 0:03:48]} Kh7 {[%emt 0:02:28]} 54. Qf8 {[%emt 0:00:53]} Qd5+ {[%emt 0:00:33]} 55. Kf2 {[%emt 0:00:25]} e4 {[%emt 0:00:26]} 56. Qe7 {[%emt 0:00:50]} Qa2+ {[%emt 0:03:04]} 57. Ke1 {[%emt 0:00:07]} e3 {[%emt 0:00:28]} 58. f5 {[%emt 0:00:35]} Qd2+ {[%emt 0:00:09]} 0-1